fUST/lending_fUST_20241010
["ID","MTS","AMOUNT","RATE_DAILY","PERIOD"]
[340103724,1728549047726,-280.0,0.00064095,2]
[340103725,1728549047737,-500.0,0.00064109,120]
[340103726,1728549047747,-500.0,0.00064109,120]
[340103727,1728549047756,-1562.62,0.00064109,7]
[340103728,1728549047766,-377.97146234,0.00064109,2]
[340103729,1728549047779,-23649.7,0.00064109,18]
[340103730,1728549047789,-628.08,0.00064109,2]
[340103731,1728549047799,-301.0,0.000642,120]
[340103732,1728549047808,-301.0,0.0006431,120]
[340103733,1728549047819,-152.0,0.00064365,120]
[340103734,1728549047829,-1000.0,0.00064381,120]
[340103735,1728549047839,-1562.62,0.00064383,7]
[340103736,1728549047849,-23649.7,0.00064383,18]
[340103737,1728549047860,-628.08,0.00064383,2]
[340103738,1728549047870,-1528.16945868,0.00064433,2]
[340103739,1728549047881,-160.0,0.00064442,2]
[340103740,1728549047891,-1562.62,0.00064657,7]
[340103741,1728549047901,-23649.7,0.00064657,18]
[340103742,1728549047911,-628.08,0.00064657,2]
[340103743,1728549047921,-1562.62,0.00064931,7]
[340103744,1728549047930,-23649.7,0.00064931,18]
[340103745,1728549047940,-628.08,0.00064931,2]
[340103746,1728549047949,-184.9058961,0.00064999,30]
[340103747,1728549047959,-3958.52774622,0.00065,2]
[340103748,1728549047968,-1562.62,0.00065205,7]
[340103749,1728549047979,-23649.7,0.00065205,18]
[340103750,1728549047988,-628.08,0.00065205,2]
[340103751,1728549047998,-500.0,0.00065478,120]
[340103752,1728549048008,-1562.62,0.00065479,7]
[340103753,1728549048018,-23649.7,0.00065479,18]
[340103754,1728549048030,-628.08,0.00065479,2]
[340103755,1728549048039,-301.0,0.000655,120]
[340103756,1728549048048,-1000.0,0.00065751,120]
[340103757,1728549048058,-500.0,0.00065751,120]
[340103758,1728549048067,-1562.62,0.00065753,7]
[340103759,1728549048077,-23649.7,0.00065753,18]
[340103760,1728549048087,-628.08,0.00065753,2]
[340103761,1728549048097,-1562.62,0.00066027,7]
[340103762,1728549048106,-23649.7,0.00066027,18]
[340103763,1728549048116,-628.08,0.00066027,2]
[340103764,1728549048126,-301.0,0.000663,120]
[340103765,1728549048136,-1562.62,0.00066301,7]
[340103766,1728549048146,-23649.7,0.00066301,18]
[340103767,1728549048156,-628.08,0.00066301,2]
[340103768,1728549048165,-1528.16945868,0.00066337,2]
[340103769,1728549048175,-300.08387216,0.000665,120]
[340103770,1728549048185,-5000.0,0.000665,120]
[340103771,1728549048194,-1562.62,0.00066575,7]
[340103772,1728549048204,-23649.7,0.00066575,18]
[340103773,1728549048214,-628.08,0.00066575,2]
[340103774,1728549048224,-18989.47643144,0.00066667,120]
[340103775,1728549048234,-249.899999,0.000668,64]
[340103776,1728549048244,-1562.62,0.00066849,7]
[340103777,1728549048254,-23649.7,0.00066849,18]
[340103778,1728549048263,-628.08,0.00066849,2]
[340103779,1728549048274,-30000.0,0.00067,120]
[340103780,1728549048283,-180.0,0.00067,120]
[340103781,1728549048293,-157.0,0.00067,120]
[340103782,1728549048303,-162.0,0.00067,120]
[340103783,1728549048313,-180.0,0.00067055,120]
[340103784,1728549048323,-157.0,0.00067055,120]
[340103785,1728549048334,-323.545539,0.00067066,120]
[340103786,1728549048343,-1562.62,0.00067123,7]
[340103787,1728549048353,-23649.7,0.00067123,18]
[340103788,1728549048363,-628.08,0.00067123,2]
[340103789,1728549048372,-301.0,0.0006714,120]
[340103790,1728549048382,-2349.67967572,0.0006715,120]
[340103791,1728549048392,-160.0,0.00067228,5]
[340103792,1728549048402,-247.76610528,0.00067228,5]
[340103793,1728549048411,-1562.62,0.00067397,7]
[340103794,1728549048420,-23649.7,0.00067397,18]
[340103795,1728549048430,-628.08,0.00067397,2]
[340103796,1728549048441,-1562.62,0.00067671,7]
[340103797,1728549048451,-23649.7,0.00067671,18]
[340103798,1728549048460,-628.08,0.00067671,2]
[340103799,1728549048470,-500.0,0.00067786,120]
[340103800,1728549048480,-300.0,0.000678,66]
[340103801,1728549048490,-1562.62,0.00067945,7]
[340103802,1728549048500,-23649.7,0.00067945,18]
[340103803,1728549048509,-628.08,0.00067945,2]
[340103804,1728549048520,-1000.0,0.00068,120]
[340103805,1728549048531,-2349.67967572,0.0006815,120]
[340103806,1728549048541,-301.0,0.000682,120]
[340103807,1728549048551,-1562.62,0.00068219,7]
[340103808,1728549048561,-23649.7,0.00068219,18]
[340103809,1728549048571,-628.08,0.00068219,2]
[340103810,1728549048581,-1528.16945868,0.00068242,2]
[340103811,1728549048590,-233.166343,0.000683,17]
[340103812,1728549048600,-1000.0,0.00068309,60]
[340103813,1728549048610,-1000.0,0.00068317,60]
[340103814,1728549048620,-500.0,0.00068334,120]
[340103815,1728549048635,-1000.0,0.00068386,60]
[340103816,1728549048644,-3749.07504615,0.000684,30]
[340103817,1728549048654,-561.54827475,0.00068413,60]
[340103818,1728549048664,-1000.0,0.00068458,60]
[340103819,1728549048675,-1562.62,0.00068493,7]
[340103820,1728549048684,-500.0,0.00068493,120]
[340103821,1728549048694,-513.17275026,0.00068493,120]
[340103822,1728549048706,-500.0,0.00068493,120]
[340103823,1728549048716,-500.0,0.00068493,120]
[340103824,1728549048727,-501.13520874,0.00068493,120]
[340103825,1728549048737,-23649.7,0.00068493,18]
[340103826,1728549048747,-628.08,0.00068493,2]
[340103827,1728549048757,-1000.0,0.00068494,60]
[340103828,1728549048767,-1000.0,0.00068531,60]
[340103829,1728549048779,-1000.0,0.00068595,60]
[340103830,1728549048789,-350.2,0.000686,67]
[340103831,1728549048798,-1000.0,0.00068615,60]
[340103832,1728549048808,-1000.0,0.00068618,60]
[340103833,1728549048818,-150.112233,0.000687,16]
[340103834,1728549048828,-150.0,0.00068747,2]
[340103835,1728549048838,-1562.62,0.00068767,7]
[340103836,1728549048849,-23649.7,0.00068767,18]
[340103837,1728549048859,-628.08,0.00068767,2]
[340103838,1728549048869,-300.0,0.000688,67]
[340103839,1728549048878,-772.69896657,0.000688,120]
[340103840,1728549048888,-500.0,0.00068882,120]
[340103841,1728549048898,-159.179999,0.000689,120]
[340103842,1728549048908,-150.0,0.000689,2]
[340103843,1728549048918,-2000.0,0.000689,120]
[340103844,1728549048928,-280.0,0.00068955,2]
[340103845,1728549048938,-416127.31334517,0.00068998,120]
[340103846,1728549048948,-1993000.82826286,0.00068998,120]
[340103847,1728549048959,-6776.97988319,0.00068999,120]
[340103848,1728549048969,-331.25459726,0.00068999,120]
[340103849,1728549048978,-231555.0896634,0.00069,120]
[340103850,1728549048988,-468.88647836,0.00069,120]
[340103851,1728549048997,-150.112233,0.00069,17]
[340103852,1728549049007,-3000.0,0.00069,120]
[340103853,1728549049016,-41014.56400902,0.00069,120]
[340103854,1728549049027,-3000.0,0.0006901,120]
[340103855,1728549049037,-3000.0,0.0006902,120]
[340103856,1728549049048,-3000.0,0.0006903,120]
[340103857,1728549049058,-5613.502111,0.0006904,120]
[340103858,1728549049068,-1562.62,0.00069041,7]
[340103859,1728549049079,-23649.7,0.00069041,18]
[340103860,1728549049088,-628.08,0.00069041,2]
[340103861,1728549049098,-1000.0,0.00069059,120]
[340103862,1728549049108,-5034.33280119,0.00069083,2]
[340103863,1728549049118,-2349.67967572,0.0006915,120]
[340103864,1728549049128,-150.80018939,0.00069266,2]
[340103865,1728549049138,-1562.77670406,0.00069315,7]
[340103866,1728549049148,-23649.91256222,0.00069315,18]
[340103867,1728549049158,-628.18252126,0.00069315,2]
[340103868,1728549049167,-916204.21800876,0.00069377,3]
[340103869,1728549049177,-90000.0,0.0006938,30]
[340103870,1728549049188,-573409.1878,0.000694,120]
[340103871,1728549049198,-198.75,0.000694,30]
[340103872,1728549049209,-300.0,0.0006943,120]
[340103873,1728549049221,-999.72100402,0.000695,4]
[340103874,1728549049231,-300.0,0.000696,69]
[340103875,1728549049242,-252.052913,0.000696,30]
[340103876,1728549049252,-1174676.43145691,0.0006965,120]
[340103877,1728549049263,-488294.32276381,0.0006965,120]
[340103878,1728549049281,-33026.90582985,0.0006965,120]
[340103975,1728550232942,-210.3046,0.00034795,2]
[340103976,1728550232968,-160.35,0.000384,2]
[340103977,1728550232993,-180.0,0.0003886,4]
[340103978,1728550233018,-1180.5122957,0.00039879,2]
[340103979,1728550233043,-210.3046,0.00040173,2]
[340103980,1728550233066,-152.372,0.00041429,2]
[340103981,1728550233090,-577.095,0.00041429,2]
[340103982,1728550233115,-400.0,0.00042999,30]
[340103983,1728550233146,-400.0,0.00042999,5]
[340103984,1728550233170,-5417.579999,0.00043,120]
[340103985,1728550233195,-150.0,0.00044429,2]
[340103986,1728550233222,-204.0,0.00044658,2]
[340103987,1728550233249,-196.0,0.00044658,2]
[340103988,1728550233273,-5417.58,0.00045,120]
[340103989,1728550233299,-210.3046,0.00045552,120]
[340103990,1728550233323,-180.0,0.0004576,14]
[340103991,1728550233348,-160.429638,0.00045897,2]
[340103992,1728550233373,-155.0,0.00046849,90]
[340103993,1728550233397,-155.0,0.00047,90]
[340103994,1728550233569,-5417.579999,0.00047,120]
[340103995,1728550233600,-150.0,0.00047429,2]
[340103996,1728550233626,-180.0,0.0004874,14]
[340103997,1728550233651,-155.0,0.00048904,90]
[340103998,1728550233675,-500.0,0.00049315,120]
[340103999,1728550233699,-5417.58,0.000495,120]
[340104000,1728550233723,-204.0,0.00049517,2]
[340104001,1728550233750,-196.0,0.00049517,2]
[340104002,1728550233773,-150.0,0.00050429,120]
[340104003,1728550233797,-210.3046,0.0005093,120]
[340104004,1728550233821,-155.0,0.00051349,120]
[340104005,1728550233846,-180.0,0.0005172,14]
[340104006,1728550233869,-150.0,0.00053429,120]
[340104007,1728550233893,-4403.83983444,0.00054276,28]
[340104008,1728550233917,-5417.579999,0.000543,120]
[340104009,1728550233941,-157.81335813,0.000543,120]
[340104010,1728550233968,-204.0,0.00054376,2]
[340104011,1728550233993,-196.0,0.00054376,2]
[340104012,1728550234019,-180.0,0.000547,14]
[340104013,1728550234052,-166.35238907,0.00054794,120]
[340104014,1728550234076,-481.06,0.000563,7]
[340104015,1728550234101,-210.3046,0.00056309,120]
[340104016,1728550234130,-155.0,0.00056484,120]
[340104017,1728550234161,-154.18738826,0.00057271,108]
[340104018,1728550234185,-180.0,0.0005768,14]
[340104019,1728550234209,-16523.07201,0.00058499,30]
[340104020,1728550234233,-5417.579999,0.000585,120]
[340104021,1728550234259,-5417.58,0.000586,120]
[340104022,1728550234284,-155.0,0.00058685,120]
[340104023,1728550234307,-6365.8812232,0.00058736,120]
[340104024,1728550234331,-21879.92864999,0.00059,120]
[340104025,1728550234361,-204.0,0.00059236,2]
[340104026,1728550234386,-196.0,0.00059236,2]
[340104027,1728550234411,-468.82,0.0005999,30]
[340104028,1728550234434,-501.0,0.0006,120]
[340104029,1728550234458,-501.0,0.0006,120]
[340104030,1728550234482,-501.0,0.0006,120]
[340104031,1728550234507,-501.0,0.0006,120]
[340104032,1728550234531,-501.0,0.0006,120]
[340104033,1728550234556,-501.0,0.0006,120]
[340104034,1728550234580,-501.0,0.0006,120]
[340104035,1728550234609,-501.0,0.0006,120]
[340104036,1728550234634,-501.0,0.0006,120]
[340104037,1728550234660,-501.0,0.0006,120]
[340104038,1728550234688,-501.0,0.0006,120]
[340104039,1728550234713,-501.0,0.0006,120]
[340104040,1728550234737,-501.0,0.0006,120]
[340104041,1728550234764,-501.0,0.0006,120]
[340104042,1728550234789,-501.0,0.0006,120]
[340104043,1728550234814,-501.0,0.0006,120]
[340104044,1728550234839,-501.0,0.0006,120]
[340104045,1728550234865,-501.0,0.0006,120]
[340104046,1728550234895,-501.0,0.0006,120]
[340104047,1728550234925,-501.0,0.0006,120]
[340104048,1728550234956,-153.0,0.00060637,120]
[340104049,1728550234985,-153.0,0.00060637,120]
[340104050,1728550235015,-153.0,0.00060637,120]
[340104051,1728550235046,-153.0,0.00060637,120]
[340104052,1728550235076,-153.0,0.00060637,120]
[340104053,1728550235106,-153.0,0.00060637,120]
[340104054,1728550235138,-153.0,0.00060637,120]
[340104055,1728550235170,-153.0,0.00060637,120]
[340104056,1728550235200,-153.0,0.00060637,120]
[340104057,1728550235233,-153.0,0.00060637,120]
[340104058,1728550235264,-153.0,0.00060637,120]
[340104059,1728550235294,-153.0,0.00060637,120]
[340104060,1728550235328,-153.0,0.00060637,120]
[340104061,1728550235359,-153.0,0.00060637,120]
[340104062,1728550235390,-153.0,0.00060638,120]
[340104063,1728550235420,-153.0,0.00060638,120]
[340104064,1728550235450,-153.0,0.00060638,120]
[340104065,1728550235478,-153.0,0.00060638,120]
[340104066,1728550235507,-153.0,0.00060638,120]
[340104067,1728550235533,-153.0,0.00060638,120]
[340104068,1728550235560,-153.0,0.0006065,120]
[340104069,1728550235587,-153.0,0.0006065,120]
[340104070,1728550235619,-153.0,0.0006065,120]
[340104071,1728550235649,-153.0,0.0006065,120]
[340104072,1728550235678,-153.0,0.0006065,120]
[340104073,1728550235711,-153.0,0.0006065,120]
[340104074,1728550235749,-153.0,0.0006065,120]
[340104075,1728550235777,-153.0,0.0006065,120]
[340104076,1728550235807,-153.0,0.0006065,120]
[340104077,1728550235835,-153.0,0.0006065,120]
[340104078,1728550235865,-153.0,0.0006065,120]
[340104079,1728550235893,-153.0,0.0006065,120]
[340104080,1728550235920,-153.0,0.0006065,120]
[340104081,1728550235947,-153.0,0.0006065,120]
[340104082,1728550235973,-153.0,0.00060651,120]
[340104083,1728550235999,-153.0,0.00060651,120]
[340104084,1728550236025,-153.0,0.00060651,120]
[340104085,1728550236054,-153.0,0.00060651,120]
[340104086,1728550236082,-153.0,0.00060651,120]
[340104087,1728550236109,-153.0,0.00060651,120]
[340104088,1728550236140,-203.87711497,0.00060656,15]
[340104089,1728550236169,-180.0,0.0006066,14]
[340104090,1728550236197,-153.0,0.00060662,120]
[340104091,1728550236227,-153.0,0.00060662,120]
[340104092,1728550236257,-153.0,0.00060662,120]
[340104093,1728550236285,-153.0,0.00060662,120]
[340104094,1728550236313,-153.0,0.00060662,120]
[340104095,1728550236343,-153.0,0.00060662,120]
[340104096,1728550236371,-153.0,0.00060662,120]
[340104097,1728550236518,-153.0,0.00060662,120]
[340104098,1728550236551,-153.0,0.00060662,120]
[340104099,1728550236575,-153.0,0.00060662,120]
[340104100,1728550236599,-153.0,0.00060662,120]
[340104101,1728550236626,-153.0,0.00060662,120]
[340104102,1728550236654,-153.0,0.00060662,120]
[340104103,1728550236679,-153.0,0.00060662,120]
[340104104,1728550236703,-153.0,0.00060664,120]
[340104105,1728550236728,-153.0,0.00060664,120]
[340104106,1728550236755,-153.0,0.00060664,120]
[340104107,1728550236779,-153.0,0.00060664,120]
[340104108,1728550236804,-153.0,0.00060664,120]
[340104109,1728550236830,-153.0,0.00060664,120]
[340104110,1728550236856,-153.0,0.00060674,120]
[340104111,1728550236881,-153.0,0.00060674,120]
[340104112,1728550236906,-153.0,0.00060674,120]
[340104113,1728550236930,-153.0,0.00060674,120]
[340104114,1728550236956,-153.0,0.00060674,120]
[340104115,1728550236980,-153.0,0.00060674,120]
[340104116,1728550237006,-153.0,0.00060674,120]
[340104117,1728550237029,-153.0,0.00060674,120]
[340104118,1728550237053,-153.0,0.00060674,120]
[340104119,1728550237077,-153.0,0.00060674,120]
[340104120,1728550237100,-153.0,0.00060674,120]
[340104121,1728550237128,-153.0,0.00060674,120]
[340104122,1728550237155,-153.0,0.00060674,120]
[340104123,1728550237180,-153.0,0.00060674,120]
[340104124,1728550237205,-153.0,0.00060675,120]
[340104125,1728550237232,-153.0,0.00060675,120]
[340104126,1728550237258,-153.0,0.00060675,120]
[340104127,1728550237282,-153.0,0.00060675,120]
[340104128,1728550237308,-153.0,0.00060675,120]
[340104129,1728550237333,-153.0,0.00060675,120]
[340104130,1728550237358,-155.0,0.00061619,120]
[340104131,1728550237383,-210.3046,0.00061687,120]
[340104132,1728550237409,-150.0,0.00062,120]
[340104133,1728550237433,-212.529999,0.00063,120]
[340104134,1728550237457,-511.07421918,0.00063013,120]
[340104135,1728550237482,-500.0,0.00063013,120]
[340104136,1728550237508,-530.34003233,0.00063013,120]
[340104137,1728550237534,-500.0,0.00063013,120]
[340104138,1728550237560,-500.0,0.00063013,120]
[340104139,1728550237584,-500.0,0.00063013,120]
[340104140,1728550237607,-500.0,0.00063013,120]
[340104141,1728550237629,-507.76441343,0.00063013,120]
[340104142,1728550237654,-500.0,0.00063013,2]
[340104143,1728550237677,-500.0,0.00063013,120]
[340104144,1728550237701,-300.0,0.00063013,120]
[340104145,1728550237725,-500.0,0.00063287,120]
[340104146,1728550237748,-500.0,0.00063287,120]
[340104147,1728550237773,-315.93706647,0.00063287,2]
[340104148,1728550237796,-500.0,0.00063287,120]
[340104149,1728550237820,-13980.32560849,0.00063468,2]
[340104150,1728550237845,-329.39946524,0.00063561,120]
[340104151,1728550237871,-204.52,0.00063561,120]
[340104152,1728550237894,-500.0,0.00063561,120]
[340104153,1728550237919,-180.0,0.0006364,14]
[340104154,1728550237943,-504.5236134,0.00063835,120]
[340104155,1728550237970,-204.0,0.00064095,2]
[340104156,1728550237995,-196.0,0.00064095,2]
[340104157,1728550238029,-5000.0,0.00065,65]
[340104158,1728550238056,-86056.69905156,0.00065,2]
[340104159,1728550238080,-10000.0,0.00065,90]
[340104160,1728550238104,-2017.5349798,0.0006612,40]
[340104161,1728550238133,-5000.0,0.0006612,30]
[340104162,1728550238157,-180.0,0.0006662,14]
[340104163,1728550238181,-2017.5349798,0.0006662,41]
[340104165,1728550238205,-158.0,0.00067,120]
[340104166,1728550238229,-162.0,0.00067,120]
[340104167,1728550238257,-210.3046,0.00067066,120]
[340104169,1728550238282,-2017.5349798,0.0006712,41]
[340104170,1728550238306,-16447.75773006,0.0006715,120]
[340104171,1728550238331,-2017.5349798,0.0006762,42]
[340104172,1728550238357,-317.79304135,0.00067988,120]
[340104173,1728550238382,-500.0,0.00067988,120]
[340104174,1728550238408,-678.33901869,0.00067988,120]
[340104175,1728550238432,-178.61952534,0.00067988,31]
[340104176,1728550238460,-678.33901869,0.00067988,120]
[340104179,1728550238486,-678.33901869,0.00067988,120]
[340104180,1728550238513,-678.33901869,0.00067988,120]
[340104181,1728550238539,-678.33901869,0.00067988,120]
[340104182,1728550238566,-678.33901869,0.00067988,120]
[340104183,1728550238590,-252.03168435,0.00067988,120]
[340104184,1728550238617,-678.33901869,0.00067988,120]
[340104185,1728550238645,-678.33901869,0.00067988,120]
[340104186,1728550238670,-678.33901869,0.00067988,120]
[340104187,1728550238694,-678.33901869,0.00067988,120]
[340104188,1728550238717,-678.33901869,0.00067988,120]
[340104189,1728550238743,-7829.01484202,0.00067989,11]
[340104190,1728550238771,-8224.01748523,0.00067989,11]
[340104191,1728550239160,-315.154701,0.00039471,120]
[340104192,1728550239173,-150.299,0.00041429,2]
[340104193,1728550239265,-233.95479544,0.00050971,120]
[340104194,1728550239276,-4403.83983442,0.00057937,28]
[340104195,1728550239288,-4403.83983442,0.00061597,28]
[340104196,1728550239300,-209.20708881,0.00063467,120]
[340104197,1728550239309,-500.0,0.00063467,120]
[340104198,1728550239319,-500.0,0.00063467,120]
[340104199,1728550239329,-268.17208859,0.00063467,120]
[340104200,1728550239338,-500.0,0.00063467,120]
[340104201,1728550239348,-500.0,0.00063467,120]
[340104202,1728550239357,-500.0,0.00063467,120]
[340104203,1728550239367,-500.0,0.00063467,120]
[340104204,1728550239378,-500.0,0.00063467,120]
[340104205,1728550239387,-500.0,0.00063467,120]
[340104206,1728550239396,-500.0,0.00063467,120]
[340104207,1728550239406,-500.0,0.00063467,120]
[340104208,1728550239414,-500.0,0.00063467,120]
[340104209,1728550239424,-500.0,0.00063467,120]
[340104210,1728550239433,-500.0,0.00063467,120]
[340104211,1728550239443,-500.0,0.00063467,120]
[340104212,1728550239452,-501.17106795,0.00063467,120]
[340104213,1728550239461,-500.0,0.00063467,120]
[340104214,1728550239471,-500.0,0.00063467,120]
[340104215,1728550239480,-500.0,0.00063467,120]
[340104216,1728550239490,-500.0,0.00063467,120]
[340104217,1728550239500,-500.0,0.00063467,120]
[340104218,1728550239510,-500.0,0.00063467,120]
[340104219,1728550239519,-500.0,0.00063467,120]
[340104220,1728550239529,-154.33879464,0.00063467,120]
[340104221,1728550239538,-500.0,0.00063467,120]
[340104222,1728550239547,-500.0,0.00063467,120]
[340104223,1728550239557,-500.0,0.00063467,120]
[340104224,1728550239566,-500.0,0.00063467,120]
[340104225,1728550239577,-678.33901869,0.00067988,120]
[340104226,1728550239587,-678.33901869,0.00067988,120]
[340104227,1728550239596,-678.33901869,0.00067988,120]
[340104228,1728550239605,-5938.39419581,0.00067989,11]
[340104268,1728550243294,-4403.83983442,0.00065258,28]
[340104269,1728550243303,-643.12134576,0.00067973,15]
[340104270,1728550243314,-105.84108706,0.00067989,11]
[340104271,1728550243324,-7829.01484202,0.0006799,11]
[340104272,1728550243335,-14268.2527681,0.0006799,11]
[340104273,1728550243345,-67542.68371307,0.00067998,120]
[340104274,1728550243357,-229881.89019193,0.00067998,120]
[340104349,1728551432383,-160.821164,0.00034795,2]
[340104350,1728551432393,-400.0,0.00036428,2]
[340104351,1728551432404,-210.718836,0.00036428,2]
[340104352,1728551432418,-189.281164,0.00036428,2]
[340104353,1728551432429,-1329.19142063,0.00036429,2]
[340104354,1728551433102,-23570.80857937,0.00036429,2]
[340104355,1728551433127,-1147.8935824,0.000365,2]
[340104356,1728551433156,-232.606825,0.00036716,2]
[340104357,1728551433182,-150.0,0.000384,2]
[340104358,1728551433209,-232.606825,0.00038629,2]
[340104359,1728551433234,-320.0,0.00039001,5]
[340104360,1728551433258,-160.821164,0.00041182,120]
[340104361,1728551433283,-150.0,0.00041429,2]
[340104362,1728551433312,-150.848,0.00041429,2]
[340104363,1728551433336,-250.0,0.00041429,2]
[340104364,1728551433361,-150.084,0.00041429,2]
[340104365,1728551433385,-1000.0,0.00042,2]
[340104366,1728551433409,-5417.579999,0.00043,120]
[340104367,1728551433435,-1000.0,0.00043769,2]
[340104368,1728551433460,-150.0,0.00044429,2]
[340104369,1728551433485,-150.0,0.00044429,2]
[340104370,1728551433511,-150.0,0.00044429,2]
[340104371,1728551433536,-150.0,0.00044429,2]
[340104372,1728551433563,-253.0,0.00044658,2]
[340104373,1728551433593,-163.333333,0.00044658,2]
[340104374,1728551433619,-5417.58,0.00045,120]
[340104375,1728551433646,-1000.0,0.00045538,2]
[340104376,1728551433671,-5417.579999,0.00047,120]
[340104377,1728551433697,-1000.0,0.00047308,2]
[340104378,1728551433723,-150.0,0.00047429,2]
[340104379,1728551433747,-150.0,0.00047429,2]
[340104380,1728551433772,-160.821164,0.00047568,120]
[340104381,1728551433797,-500.0,0.000485,7]
[340104382,1728551433822,-500.0,0.000485,10]
[340104383,1728551433846,-1000.0,0.00049077,2]
[340104384,1728551433871,-5417.58,0.000495,120]
[340104385,1728551433896,-253.0,0.00049517,2]
[340104386,1728551433921,-1000.0,0.0004987,7]
[340104387,1728551433945,-1000.0,0.0004987,10]
[340104388,1728551433971,-163.333333,0.00050089,2]
[340104389,1728551433997,-150.0,0.00050429,120]
[340104390,1728551434024,-1000.0,0.00050846,120]
[340104391,1728551434049,-1500.0,0.00051873,7]
[340104392,1728551434074,-500.75339827,0.00051873,10]
[340104393,1728551434099,-1000.0,0.00052615,120]
[340104394,1728551434124,-150.0,0.00053429,120]
[340104395,1728551434150,-160.821164,0.00053955,120]
[340104396,1728551434178,-1000.0,0.00054,30]
[340104397,1728551434203,-1000.0,0.00054,30]
[340104398,1728551434228,-1000.0,0.00054,30]
[340104399,1728551434253,-1000.0,0.00054,30]
[340104400,1728551434278,-1000.0,0.00054,30]
[340104401,1728551434303,-1000.0,0.00054,30]
[340104402,1728551434328,-1000.0,0.00054,30]
[340104403,1728551434353,-251.0,0.00054,30]
[340104404,1728551434392,-2000.0,0.00054214,7]
[340104405,1728551434419,-5417.579999,0.000543,120]
[340104406,1728551434446,-253.0,0.00054376,2]
[340104407,1728551434472,-1000.0,0.00054385,120]
[340104408,1728551434499,-163.333333,0.0005552,2]
[340104409,1728551434525,-1000.0,0.00056154,120]
[340104410,1728551434554,-288.64,0.000565,7]
[340104411,1728551434581,-2500.0,0.00056805,7]
[340104412,1728551434605,-154.18738826,0.00057271,108]
[340104413,1728551434631,-1000.0,0.00057923,120]
[340104414,1728551434655,-500.0,0.00057999,120]
[340104415,1728551434682,-193.12281473,0.00057999,120]
[340104416,1728551434714,-500.0,0.00057999,120]
[340104417,1728551434739,-222.45512894,0.00057999,120]
[340104418,1728551434767,-289.35075568,0.00057999,120]
[340104419,1728551434796,-500.0,0.00057999,120]
[340104420,1728551434822,-177.42532021,0.00057999,31]
[340104421,1728551434847,-500.0,0.00057999,120]
[340104422,1728551434874,-500.0,0.00057999,120]
[340104423,1728551434900,-500.0,0.00057999,120]
[340104424,1728551434930,-500.0,0.00057999,120]
[340104425,1728551434963,-500.0,0.00057999,120]
[340104426,1728551434987,-11548.85389414,0.00058,120]
[340104429,1728551438259,-500.0,0.00057999,120]
[340104430,1728551438287,-500.0,0.00057999,120]
[340104431,1728551438316,-500.0,0.00057999,120]
[340104432,1728551438341,-500.0,0.00057999,120]
[340104433,1728551438366,-500.0,0.00057999,120]
[340104434,1728551438393,-277.90789644,0.00057999,120]
[340104435,1728551438422,-500.0,0.00057999,120]
[340104436,1728551438450,-500.0,0.00057999,120]
[340104440,1728551438477,-183.81542163,0.00057999,120]
[340104441,1728551438504,-500.0,0.00057999,120]